fUSD/lending_fUSD_20250811
["ID","MTS","AMOUNT","RATE_DAILY","PERIOD"]
[378625069,1754929845759,-500.95,0.00016611,2]
[378625071,1754929845768,-400.0,0.00016611,2]
[378625073,1754929845777,-400.0,0.00016611,2]
[378625076,1754929845787,-400.0,0.00016611,2]
[378625078,1754929845796,-531.56,0.00016611,2]
[378625080,1754929845806,-400.0,0.00016611,2]
[378625082,1754929845815,-400.0,0.00016611,2]
[378625084,1754929845826,-400.0,0.00016611,2]
[378625087,1754929845835,-400.0,0.00016611,2]
[378625089,1754929845845,-400.0,0.00016611,2]
[378625091,1754929845854,-400.0,0.00016611,2]
[378625093,1754929845863,-400.0,0.00016611,2]
[378625095,1754929845872,-400.0,0.00016611,2]
[378625097,1754929845882,-474.72,0.00016611,2]
[378625099,1754929845891,-404.83497967,0.00016611,2]
[378625101,1754929845902,-400.0,0.00016611,2]
[378625103,1754929845911,-400.0,0.00016611,2]
[378625106,1754929845921,-400.0,0.00016611,2]
[378625107,1754929845930,-400.0,0.00016611,2]
[378625110,1754929845940,-400.0,0.00016611,2]
[378625111,1754929845950,-400.0,0.00016611,2]
[378625114,1754929845959,-430.94,0.00016611,2]
[378625115,1754929845970,-400.0,0.00016611,2]
[378625117,1754929845979,-400.0,0.00016611,2]
[378625119,1754929845989,-416.82,0.00016611,2]
[378625121,1754929845998,-400.0,0.00016611,2]
[378625123,1754929846007,-400.0,0.00016611,2]
[378625125,1754929846017,-322.70853311,0.00016611,2]
[378625127,1754929846026,-206.2400007,0.00016611,2]
[378625129,1754929846036,-514.18,0.00016611,2]
[378625132,1754929846047,-439.81,0.00016611,2]
[378625133,1754929846057,-416.0,0.00016611,2]
[378625135,1754929846066,-400.0,0.00016611,2]
[378625138,1754929846076,-400.0,0.00016611,2]
[378625140,1754929846086,-400.0,0.00016611,2]
[378625142,1754929846095,-400.0,0.00016611,2]
[378625144,1754929846104,-647.81,0.00016611,2]
[378625146,1754929846113,-3252.3,0.00016611,2]
[378625148,1754929846122,-400.0,0.00016611,2]
[378625150,1754929846132,-435.27,0.00016611,2]
[378625152,1754929846141,-400.0,0.00016611,2]
[378625154,1754929846153,-400.0,0.00016611,2]
[378625156,1754929846162,-624.41,0.00016611,2]
[378625158,1754929846172,-400.0,0.00016611,2]
[378625160,1754929846181,-400.0,0.00016611,2]
[378625162,1754929846191,-2860.94,0.00016611,2]
[378625164,1754929846200,-400.0,0.00016611,2]
[378625166,1754929846210,-400.0,0.00016611,2]
[378625168,1754929846219,-1633.55,0.00016611,2]
[378625170,1754929846228,-568.53,0.00016611,2]
[378625171,1754929846238,-400.0,0.00016611,2]
[378625173,1754929846247,-400.0,0.00016611,2]
[378625175,1754929846255,-1491.6,0.00016611,2]
[378625177,1754929846265,-400.0,0.00016611,2]
[378625179,1754929846274,-997.96,0.00016611,2]
[378625181,1754929846284,-400.0,0.00016611,2]
[378625183,1754929846293,-639.2,0.00016611,2]
[378625185,1754929846303,-553.11,0.00016611,2]
[378625188,1754929846313,-1584.68,0.00016611,2]
[378625190,1754929846323,-470.41,0.00016611,2]
[378625192,1754929846332,-610.16,0.00016611,2]
[378625194,1754929846341,-400.0,0.00016611,2]
[378625196,1754929846353,-400.0,0.00016611,2]
[378625198,1754929846362,-400.0,0.00016611,2]
[378625200,1754929846372,-1986.95,0.00016611,2]
[378625202,1754929846381,-400.0,0.00016611,2]
[378625204,1754929846396,-400.0,0.00016611,2]
[378625206,1754929846406,-400.0,0.00016611,2]
[378625208,1754929846415,-404.62,0.00016611,2]
[378625210,1754929846424,-400.0,0.00016611,2]
[378625212,1754929846434,-400.0,0.00016611,2]
[378625214,1754929846444,-400.0,0.00016611,2]
[378625216,1754929846454,-473.78,0.00016611,2]
[378625218,1754929846465,-400.0,0.00016611,2]
[378625220,1754929846474,-2101.2,0.00016611,2]
[378625222,1754929846483,-479.82432482,0.00016611,2]
[378625224,1754929846493,-3016.33,0.00016611,2]
[378625226,1754929846503,-400.0,0.00016611,2]
[378625228,1754929846515,-672.8,0.00016611,2]
[378625230,1754929846527,-2599.6,0.00016611,2]
[378625232,1754929846537,-423.22,0.00016611,2]
[378625234,1754929846547,-419.16,0.00016611,2]
[378625235,1754929846566,-2277.26,0.00016611,2]
[378625237,1754929846579,-400.0,0.00016611,2]
[378625240,1754929846589,-400.0,0.00016611,2]
[378625241,1754929846598,-400.0,0.00016611,2]
[378625244,1754929846608,-400.0,0.00016611,2]
[378625245,1754929846618,-400.0,0.00016611,2]
[378625247,1754929846627,-467.3,0.00016611,2]
[378625250,1754929846637,-468.03,0.00016611,2]
[378625252,1754929846647,-400.0,0.00016611,2]
[378625253,1754929846656,-829.72,0.00016611,2]
[378625255,1754929846665,-400.0,0.00016611,2]
[378625257,1754929846674,-1261.25,0.00016611,2]
[378625259,1754929846684,-2215.81703082,0.00016685,2]
[378625261,1754929846695,-173.01047748,0.00016699,2]
[378625263,1754929846704,-1344.02,0.000167,2]
[378625265,1754929846713,-800.0,0.000167,6]
[378625267,1754929846722,-160.0,0.00016702,2]
[378625269,1754929846731,-587.25116579,0.00016702,2]
[378625271,1754929846741,-346.92554585,0.00016702,2]
[378625273,1754929846750,-500.0,0.00016702,2]
[378625275,1754929846759,-74183.05,0.00016711,2]
[378625277,1754929846769,-500.0,0.00016711,2]
[378625279,1754929846778,-500.0,0.00016711,2]
[378625281,1754929846787,-500.0,0.00016711,2]
[378625283,1754929846796,-500.0,0.00016711,2]
[378625285,1754929846806,-728.45,0.00016711,2]
[378625287,1754929846815,-728.45,0.00016711,2]
[378625289,1754929846825,-151.0,0.00016712,2]
[378625291,1754929846834,-151.0,0.00016712,2]
[378625293,1754929846843,-151.0,0.00016712,2]
[378625295,1754929846853,-151.0,0.00016712,2]
[378625297,1754929846862,-151.0,0.00016712,2]
[378625299,1754929846872,-151.0,0.00016712,2]
[378625301,1754929846881,-400.0,0.00016712,2]
[378625303,1754929846890,-400.0,0.00016712,2]
[378625305,1754929846901,-400.0,0.00016712,2]
[378625307,1754929846910,-400.0,0.00016712,2]
[378625309,1754929846919,-400.0,0.00016712,2]
[378625311,1754929846930,-589.07,0.00016712,2]
[378625313,1754929846940,-400.0,0.00016712,2]
[378625315,1754929846949,-400.0,0.00016712,2]
[378625317,1754929846959,-400.0,0.00016712,2]
[378625319,1754929846968,-400.0,0.00016712,2]
[378625321,1754929846978,-400.0,0.00016712,2]
[378625323,1754929846987,-400.0,0.00016712,2]
[378625325,1754929846997,-400.0,0.00016712,2]
[378625327,1754929847007,-400.0,0.00016712,2]
[378625329,1754929847017,-443.85,0.00016712,2]
[378625331,1754929847027,-453.2,0.00016712,2]
[378625333,1754929847036,-400.0,0.00016712,2]
[378625335,1754929847046,-857.6,0.00016712,2]
[378625337,1754929847055,-400.0,0.00016712,2]
[378625339,1754929847065,-400.0,0.00016712,2]
[378625341,1754929847075,-417.57,0.00016712,2]
[378625343,1754929847084,-400.0,0.00016712,2]
[378625345,1754929847094,-151.0,0.00016712,2]
[378625347,1754929847104,-400.0,0.00016712,2]
[378625349,1754929847113,-540.22,0.00016712,2]
[378625351,1754929847122,-400.0,0.00016712,2]
[378625353,1754929847131,-463.21,0.00016712,2]
[378625355,1754929847140,-400.0,0.00016712,2]
[378625357,1754929847152,-400.0,0.00016712,2]
[378625359,1754929847162,-400.0,0.00016712,2]
[378625361,1754929847171,-197.72,0.00016712,2]
[378625363,1754929847180,-466.09,0.00016712,2]
[378625365,1754929847190,-549.28,0.00016712,2]
[378625367,1754929847199,-516.03,0.00016712,2]
[378625369,1754929847208,-431.4,0.00016712,2]
[378625370,1754929847218,-400.0,0.00016712,2]
[378625371,1754929847228,-512.86,0.00016712,2]
[378625372,1754929847237,-400.0,0.00016712,2]
[378625384,1754929847478,-400.0,0.00016712,2]
[378625386,1754929847488,-511.37,0.00016712,2]
[378625388,1754929847498,-400.41,0.00016712,2]
[378625390,1754929847507,-535.35,0.00016712,2]
[378625392,1754929847516,-419.92,0.00016712,2]
[378625394,1754929847525,-400.0,0.00016712,2]
[378625396,1754929847535,-1342.22,0.00016712,2]
[378625398,1754929847544,-400.0,0.00016712,2]
[378625401,1754929847559,-400.0,0.00016712,2]
[378625403,1754929847568,-475.09,0.00016712,2]
[378625405,1754929847578,-662.4,0.00016712,2]
[378625407,1754929847587,-881.93,0.00016712,2]
[378625409,1754929847597,-400.0,0.00016712,2]
[378625411,1754929847608,-733.1,0.00016712,2]
[378625413,1754929847617,-590.21,0.00016712,2]
[378625415,1754929847627,-400.0,0.00016712,2]
[378625417,1754929847638,-400.0,0.00016712,2]
[378625419,1754929847648,-400.0,0.00016712,2]
[378625421,1754929847666,-400.0,0.00016712,2]
[378625423,1754929847677,-1492.32,0.00016712,2]
[378625425,1754929847688,-2018.84,0.00016712,2]
[378625427,1754929847697,-400.0,0.00016712,2]
[378625429,1754929847707,-400.0,0.00016712,2]
[378625431,1754929847717,-400.0,0.00016712,2]
[378625433,1754929847735,-400.0,0.00016712,2]
[378625435,1754929847744,-523.31,0.00016712,2]
[378625437,1754929847754,-572.13,0.00016712,2]
[378625439,1754929847763,-568.09,0.00016712,2]
[378625441,1754929847773,-1595.0,0.00016712,2]
[378625443,1754929847782,-724.79,0.00016712,2]
[378625445,1754929847792,-517.8,0.00016712,2]
[378625447,1754929847802,-1000.0,0.00016712,2]
[378625449,1754929847812,-439.79,0.00016712,2]
[378625451,1754929847821,-744.17,0.00016712,2]
[378625453,1754929847831,-400.0,0.00016712,2]
[378625455,1754929847841,-400.0,0.00016712,2]
[378625457,1754929847850,-467.79,0.00016712,2]
[378625459,1754929847860,-400.0,0.00016712,2]
[378625461,1754929847869,-528.54,0.00016712,2]
[378625463,1754929847879,-400.0,0.00016712,2]
[378625465,1754929847889,-218.82,0.00016712,2]
[378625467,1754929847898,-404.02,0.00016712,2]
[378625469,1754929847908,-548.76,0.00016712,2]
[378625471,1754929847917,-458.63,0.00016712,2]
[378625473,1754929847929,-990.48,0.00016712,2]
[378625475,1754929847938,-559.75,0.00016712,2]
[378625477,1754929847948,-400.0,0.00016712,2]
[378625479,1754929847958,-492.49,0.00016712,2]
[378625481,1754929847967,-400.0,0.00016712,2]
[378625483,1754929847976,-695.15,0.00016712,2]
[378625485,1754929847986,-979.92,0.00016712,2]
[378625487,1754929847995,-400.0,0.00016712,2]
[378625489,1754929848004,-400.0,0.00016712,2]
[378625491,1754929848014,-1575.75,0.00016712,2]
[378625493,1754929848023,-400.0,0.00016712,2]
[378625495,1754929848033,-400.0,0.00016712,2]
[378625497,1754929848043,-7300.43,0.00016712,2]
[378625499,1754929848054,-400.0,0.00016712,2]
[378625501,1754929848064,-400.0,0.00016712,2]
[378625503,1754929848073,-580.18,0.00016712,2]
[378625506,1754929848083,-400.0,0.00016712,2]
[378625508,1754929848093,-400.0,0.00016712,2]
[378625510,1754929848102,-449.11,0.00016712,2]
[378625512,1754929848112,-400.0,0.00016712,2]
[378625514,1754929848123,-522.03,0.00016712,2]
[378625516,1754929848132,-257.4,0.00016712,2]
[378625518,1754929848142,-807.29,0.00016712,2]
[378625520,1754929848152,-400.0,0.00016712,2]
[378625522,1754929848161,-1007.57,0.00016712,2]
[378625524,1754929848171,-1181.11,0.00016712,2]
[378625526,1754929848180,-377.40586792,0.00016712,2]
[378625528,1754929848190,-724.67,0.00016712,2]
[378625530,1754929848200,-605.95,0.00016712,2]
[378625532,1754929848210,-400.0,0.00016712,2]
[378625534,1754929848219,-400.0,0.00016712,2]
[378625536,1754929848229,-400.0,0.00016712,2]
[378625538,1754929848239,-1297.502009,0.00016712,2]
[378625540,1754929848249,-923.6,0.00016712,2]
[378625542,1754929848258,-400.0,0.00016712,2]
[378625544,1754929848269,-859.71,0.00016712,2]
[378625546,1754929848278,-848.5,0.00016712,2]
[378625548,1754929848288,-757.410569,0.00016712,2]
[378625550,1754929848297,-400.0,0.00016712,2]
[378625552,1754929848307,-400.0,0.00016712,2]
[378625554,1754929848316,-400.0,0.00016712,2]
[378625556,1754929848326,-812.7,0.00016712,2]
[378625558,1754929848336,-400.0,0.00016712,2]
[378625560,1754929848345,-400.0,0.00016712,2]
[378625562,1754929848355,-672.86,0.00016712,2]
[378625564,1754929848364,-400.0,0.00016712,2]
[378625566,1754929848373,-400.0,0.00016712,2]
[378625568,1754929848383,-1395.98,0.00016712,2]
[378625570,1754929848397,-753.78,0.00016712,2]
[378625572,1754929848407,-400.0,0.00016712,2]
[378625574,1754929848418,-484.69,0.00016712,2]
[378625576,1754929848427,-400.0,0.00016712,2]
[378625578,1754929848437,-1383.388466,0.00016712,2]
[378625580,1754929848446,-223.99342273,0.00016712,2]
[378625582,1754929848456,-400.0,0.00016712,2]
[378625584,1754929848466,-617.44,0.00016712,2]
[378625586,1754929848478,-400.0,0.00016712,2]
[378625588,1754929848487,-400.0,0.00016712,2]
[378625590,1754929848497,-400.0,0.00016712,2]
[378625592,1754929848506,-770.49,0.00016712,2]
[378625594,1754929848516,-400.0,0.00016712,2]
[378625596,1754929848525,-499.28,0.00016712,2]
[378625598,1754929848535,-452.6,0.00016712,2]
[378625600,1754929848546,-1743.52,0.00016712,2]
[378625602,1754929848555,-284.88,0.00016712,2]
[378625604,1754929848564,-586.53,0.00016712,2]
[378625606,1754929848575,-620.12,0.00016712,2]
[378625608,1754929848584,-846.71,0.00016712,2]
[378625610,1754929848593,-751.14,0.00016712,2]
[378625612,1754929848602,-798.63,0.00016712,2]
[378625614,1754929848612,-400.0,0.00016712,2]
[378625616,1754929848623,-400.0,0.00016712,2]
[378625618,1754929848633,-689.2,0.00016712,2]
[378625620,1754929848643,-400.0,0.00016712,2]
[378625622,1754929848653,-1020.42,0.00016712,2]
[378625624,1754929848664,-444.73,0.00016712,2]
[378625626,1754929848674,-452.31,0.00016712,2]
[378625628,1754929848683,-400.0,0.00016712,2]
[378625630,1754929848692,-400.0,0.00016712,2]
[378625632,1754929848702,-3161.52,0.00016712,2]
[378625634,1754929848712,-5091.06,0.00016712,2]
[378625636,1754929848721,-519.11,0.00016712,2]
[378625638,1754929848730,-400.0,0.00016712,2]
[378625640,1754929848740,-681.9,0.00016712,2]
[378625642,1754929848750,-400.0,0.00016712,2]
[378625644,1754929848760,-400.0,0.00016712,2]
[378625646,1754929848769,-400.0,0.00016712,2]
[378625648,1754929848778,-493.26,0.00016712,2]
[378625650,1754929848788,-400.0,0.00016712,2]
[378625652,1754929848797,-1253.73,0.00016712,2]
[378625654,1754929848806,-400.0,0.00016712,2]
[378625656,1754929848816,-400.0,0.00016712,2]
[378625658,1754929848825,-400.0,0.00016712,2]
[378625660,1754929848835,-457.07,0.00016712,2]
[378625662,1754929848845,-400.0,0.00016712,2]
[378625664,1754929848856,-436.35,0.00016712,2]
[378625666,1754929848866,-883.37,0.00016712,2]
[378625668,1754929848875,-400.0,0.00016712,2]
[378625670,1754929848885,-577.53,0.00016712,2]
[378625672,1754929848895,-798.5,0.00016712,2]
[378625674,1754929848905,-400.0,0.00016712,2]
[378625676,1754929848914,-400.0,0.00016712,2]
[378625678,1754929848924,-400.0,0.00016712,2]
[378625680,1754929848935,-625.26,0.00016712,2]
[378625682,1754929848944,-546.79,0.00016712,2]
[378625684,1754929848954,-756.47,0.00016712,2]
[378625686,1754929848964,-783.21,0.00016712,2]
[378625688,1754929848974,-400.0,0.00016712,2]
[378625690,1754929848985,-495.36,0.00016712,2]
[378625692,1754929848994,-837.23,0.00016712,2]
[378625694,1754929849004,-619.76,0.00016712,2]
[378625696,1754929849014,-1006.94,0.00016712,2]
[378625698,1754929849023,-1457.17,0.00016712,2]
[378625700,1754929849033,-1213.13,0.00016712,2]
[378625702,1754929849043,-428.64,0.00016712,2]
[378625704,1754929849053,-607.13,0.00016712,2]
[378625706,1754929849063,-676.56,0.00016712,2]
[378625708,1754929849073,-744.5,0.00016712,2]
[378625710,1754929849082,-713.45,0.00016712,2]
[378625712,1754929849093,-625.79,0.00016712,2]
[378625714,1754929849102,-400.0,0.00016712,2]
[378625716,1754929849112,-1885.63,0.00016712,2]
[378625718,1754929849122,-571.9,0.00016712,2]
[378625720,1754929849132,-1016.2,0.00016712,2]
[378625722,1754929849141,-722.52,0.00016712,2]
[378625724,1754929849151,-559.49,0.00016712,2]
[378625726,1754929849162,-400.0,0.00016712,2]
[378625728,1754929849172,-1739.01,0.00016712,2]
[378625730,1754929849182,-515.68,0.00016712,2]
[378625732,1754929849191,-400.0,0.00016712,2]
[378625734,1754929849200,-501.78,0.00016712,2]
[378625736,1754929849210,-400.0,0.00016712,2]
[378625738,1754929849220,-1102.64,0.00016712,2]
[378625740,1754929849230,-769.01,0.00016712,2]
[378625742,1754929849239,-2106.06,0.00016712,2]
[378625744,1754929849248,-666.25,0.00016712,2]
[378625746,1754929849257,-1137.19,0.00016712,2]
[378625748,1754929849266,-400.0,0.00016712,2]
[378625750,1754929849276,-857.98,0.00016712,2]
[378625752,1754929849286,-510.66,0.00016712,2]
[378625754,1754929849295,-1824.83,0.00016712,2]
[378625756,1754929849304,-400.0,0.00016712,2]
[378625758,1754929849314,-400.0,0.00016712,2]
[378625760,1754929849323,-1125.24,0.00016712,2]
[378625762,1754929849332,-538.88802725,0.00016712,2]
[378625764,1754929849341,-400.0,0.00016712,2]
[378625766,1754929849350,-400.0,0.00016712,2]
[378625768,1754929849362,-400.0,0.00016712,2]
[378625770,1754929849372,-711.15,0.00016712,2]
[378625772,1754929849384,-432.07,0.00016712,2]
[378625774,1754929849399,-458.25,0.00016712,2]
[378625776,1754929849408,-970.15,0.00016712,2]
[378625778,1754929849417,-798.19,0.00016712,2]
[378625780,1754929849426,-792.18,0.00016712,2]
[378625782,1754929849437,-3361.74,0.00016712,2]
[378625784,1754929849446,-1030.35,0.00016712,2]
[378625786,1754929849456,-699.24,0.00016712,2]
[378625788,1754929849465,-1507.98,0.00016712,2]
[378625790,1754929849474,-720.63,0.00016712,2]
[378625792,1754929849484,-1163.5,0.00016712,2]
[378625794,1754929849493,-400.0,0.00016712,2]
[378625796,1754929849503,-471.49,0.00016712,2]
[378625798,1754929849512,-575.33,0.00016712,2]
[378625800,1754929849521,-1407.52,0.00016712,2]
[378625802,1754929849530,-400.0,0.00016712,2]
[378625804,1754929849539,-3044.62,0.00016712,2]
[378625806,1754929849548,-1247.14,0.00016712,2]
[378625808,1754929849558,-755.75,0.00016712,2]
[378625810,1754929849567,-980.59,0.00016712,2]
[378625812,1754929849577,-891.74,0.00016712,2]
[378625814,1754929849586,-400.0,0.00016712,2]
[378625816,1754929849595,-715.75,0.00016712,2]
[378625818,1754929849604,-400.0,0.00016712,2]
[378625820,1754929849614,-750.55,0.00016712,2]
[378625822,1754929849623,-529.6,0.00016712,2]
[378625824,1754929849633,-1181.59,0.00016712,2]
[378625826,1754929849642,-400.0,0.00016712,2]
[378625828,1754929849653,-731.72,0.00016712,2]
[378625830,1754929849662,-543.87,0.00016712,2]
[378625832,1754929849672,-1315.19,0.00016712,2]
[378625834,1754929849682,-400.0,0.00016712,2]
[378625836,1754929849691,-1359.48,0.00016712,2]
[378625838,1754929849701,-1755.07,0.00016712,2]
[378625840,1754929849710,-400.0,0.00016712,2]
[378625842,1754929849720,-3204.41,0.00016712,2]
[378625844,1754929849729,-553.26,0.00016712,2]
[378625846,1754929849738,-10562.43,0.00016712,2]
[378625848,1754929849747,-400.0,0.00016712,2]
[378625850,1754929849756,-400.0,0.00016712,2]
[378625852,1754929849765,-5313.72,0.00016712,2]
[378625853,1754929849774,-427.84,0.00016712,2]
[378625854,1754929849783,-1012.37,0.00016712,2]
[378625855,1754929849792,-746.9,0.00016712,2]
[378625856,1754929849802,-617.45,0.00016712,2]
[378625857,1754929849811,-400.0,0.00016712,2]
[378625859,1754929849820,-1648.32,0.00016712,2]
[378625861,1754929849829,-958.74,0.00016712,2]
[378625872,1754929849920,-2038.43,0.00016712,2]
[378625874,1754929849930,-1958.92,0.00016712,2]
[378625876,1754929849939,-400.0,0.00016712,2]
[378625878,1754929849948,-772.42,0.00016712,2]
[378625880,1754929849958,-1134.53,0.00016712,2]
[378625882,1754929849967,-830.26,0.00016712,2]
[378625884,1754929849976,-792.66,0.00016712,2]
[378625886,1754929849985,-1135.49,0.00016712,2]
[378625888,1754929849994,-914.28,0.00016712,2]
[378625890,1754929850004,-580.26,0.00016712,2]
[378625892,1754929850013,-733.88,0.00016712,2]
[378625894,1754929850022,-1119.96,0.00016712,2]
[378625896,1754929850031,-1394.48,0.00016712,2]
[378625898,1754929850041,-1259.56,0.00016712,2]
[378625900,1754929850050,-1356.98,0.00016712,2]
[378625902,1754929850059,-1593.29,0.00016712,2]
[378625904,1754929850068,-3617.56,0.00016712,2]
[378625906,1754929850078,-452.96,0.00016712,2]
[378625908,1754929850087,-417.58,0.00016712,2]
[378625910,1754929850096,-400.0,0.00016712,2]
[378625912,1754929850105,-844.66,0.00016712,2]
[378625914,1754929850114,-529.02,0.00016712,2]
[378625916,1754929850123,-306.77,0.00016712,2]
[378625918,1754929850132,-450.55,0.00016712,2]
[378625920,1754929850142,-629.55,0.00016712,2]
[378625922,1754929850151,-536.14,0.00016712,2]
[378625924,1754929850161,-1164.98,0.00016712,2]
[378625926,1754929850169,-1029.0,0.00016712,2]
[378625928,1754929850178,-711.64,0.00016712,2]
[378625930,1754929850187,-400.0,0.00016712,2]
[378625932,1754929850196,-675.0,0.00016712,2]
[378625934,1754929850205,-2335.03,0.00016712,2]
[378625936,1754929850214,-1104.95,0.00016712,2]
[378625938,1754929850223,-1649.1,0.00016712,2]
[378625940,1754929850232,-2376.76,0.00016712,2]
[378625942,1754929850241,-995.64,0.00016712,2]
[378625944,1754929850250,-698.08,0.00016712,2]
[378625946,1754929850258,-942.85,0.00016712,2]
[378625948,1754929850267,-710.53,0.00016712,2]
[378625950,1754929850276,-1127.37,0.00016712,2]
[378625952,1754929850285,-2016.97,0.00016712,2]
[378625954,1754929850294,-1227.65,0.00016712,2]
[378625956,1754929850303,-1353.18,0.00016712,2]
[378625958,1754929850312,-3156.47,0.00016712,2]
[378625960,1754929850321,-2430.97,0.00016712,2]
[378625962,1754929850330,-513.7,0.00016712,2]
[378625964,1754929850339,-877.47,0.00016712,2]
[378625966,1754929850348,-872.62,0.00016712,2]
[378625968,1754929850357,-1472.33,0.00016712,2]
[378625970,1754929850366,-1214.75,0.00016712,2]
[378625972,1754929850377,-955.83,0.00016712,2]
[378625974,1754929850387,-1056.05,0.00016712,2]
[378625976,1754929850399,-958.05,0.00016712,2]
[378625978,1754929850408,-1000.0,0.00016712,2]
[378625980,1754929850417,-1196.37,0.00016712,2]
[378625982,1754929850426,-1300.09,0.00016712,2]
[378625984,1754929850436,-1124.93,0.00016712,2]
[378625986,1754929850445,-817.52,0.00016712,2]
[378625988,1754929850455,-1809.37,0.00016712,2]
[378625990,1754929850463,-1624.45,0.00016712,2]
[378625992,1754929850473,-1113.97,0.00016712,2]
[378625994,1754929850482,-1729.58,0.00016712,2]
[378625996,1754929850492,-400.0,0.00016712,2]
[378625998,1754929850502,-1351.51,0.00016712,2]
[378626000,1754929850511,-400.0,0.00016712,2]
[378626002,1754929850521,-685.65,0.00016712,2]
[378626004,1754929850530,-1218.13,0.00016712,2]
[378626006,1754929850539,-612.68,0.00016712,2]
[378626008,1754929850548,-1315.18,0.00016712,2]
[378626010,1754929850557,-522.78,0.00016712,2]
[378626012,1754929850566,-630.83,0.00016712,2]
[378626014,1754929850574,-2464.68,0.00016712,2]
[378626016,1754929850584,-594.68,0.00016712,2]
[378626018,1754929850593,-400.0,0.00016712,2]
[378626020,1754929850601,-400.0,0.00016712,2]
[378626022,1754929850611,-726.1,0.00016712,2]
[378626024,1754929850620,-1215.95,0.00016712,2]
[378626026,1754929850628,-1526.56,0.00016712,2]
[378626028,1754929850638,-611.34,0.00016712,2]
[378626030,1754929850646,-1144.11,0.00016712,2]
[378626032,1754929850656,-438.05,0.00016712,2]
[378626034,1754929850665,-1104.14,0.00016712,2]
[378626035,1754929850673,-2900.51,0.00016712,2]
[378626038,1754929850684,-567.5,0.00016712,2]
[378626040,1754929850694,-466.92,0.00016712,2]
[378626041,1754929850703,-2172.83,0.00016712,2]
[378626044,1754929850712,-1280.43,0.00016712,2]
[378626046,1754929850722,-1589.62,0.00016712,2]
[378626048,1754929850731,-661.89,0.00016712,2]
[378626050,1754929850740,-1056.77,0.00016712,2]
[378626052,1754929850750,-452.17,0.00016712,2]
[378626054,1754929850759,-400.0,0.00016712,2]
[378626056,1754929850768,-2171.68,0.00016712,2]
[378626058,1754929850777,-1195.69,0.00016712,2]
[378626060,1754929850787,-1126.13,0.00016712,2]
[378626062,1754929850796,-1452.17,0.00016712,2]
[378626064,1754929850805,-1740.43,0.00016712,2]
[378626066,1754929850814,-1322.15,0.00016712,2]
[378626067,1754929850823,-480.45,0.00016712,2]
[378626069,1754929850832,-400.0,0.00016712,2]
[378626071,1754929850841,-569.65,0.00016712,2]
[378626073,1754929850851,-1717.36,0.00016712,2]
[378626075,1754929850860,-1860.31,0.00016712,2]
[378626077,1754929850869,-1438.51,0.00016712,2]
[378626079,1754929850878,-980.21,0.00016712,2]
[378626081,1754929850887,-3097.48,0.00016712,2]